[Event "NJSK 2023 Jeugd B"]
[Site "Almelo, Netherlands"]
[Date "2023.05.01"]
[Round "2.7"]
[White "Knippenberg, Hidde"]
[Black "Bakija, Alan"]
[Result "1/2-1/2"]
[TimeControl "90min/40moves + 30min + 30sec/move"]
[WhiteElo "1728"]
[BlackElo "1999"]

1. b3 {[%clk 01:30:58]} {[%emt 00:00:01]} d5 {[%clk 01:30:54]} {[%emt
00:00:06]} 2. Bb2 {[%clk 01:31:25]} {[%emt 00:00:04]} Bf5 {[%clk 01:31:17]}
{[%emt 00:00:06]} 3. e3 {[%clk 01:31:49]} {[%emt 00:00:06]} e6 {[%clk
01:31:37]} {[%emt 00:00:11]} 4. Nf3 {[%clk 01:32:09]} {[%emt 00:00:10]} Nf6
{[%clk 01:32:00]} {[%emt 00:00:06]} 5. Be2 {[%clk 01:31:58]} {[%emt 00:00:41]}
h6 {[%clk 01:32:24]} {[%emt 00:00:06]} 6. O-O {[%clk 01:31:26]} {[%emt
00:01:03]} Bd6 {[%clk 01:32:48]} {[%emt 00:00:05]} 7. Ne5 {[%clk 01:31:21]}
{[%emt 00:00:36]} O-O {[%clk 01:32:51]} {[%emt 00:00:27]} 8. f4 {[%clk
01:31:41]} {[%emt 00:00:09]} c5 {[%clk 01:32:49]} {[%emt 00:00:33]} 9. d3
{[%clk 01:31:47]} {[%emt 00:00:23]} Qc7 {[%clk 01:32:27]} {[%emt 00:00:52]} 10.
Nd2 {[%clk 01:32:04]} {[%emt 00:00:13]} Nfd7 {[%clk 01:26:31]} {[%emt
00:06:27]} 11. g4 {[%clk 01:24:10]} {[%emt 00:08:24]} Bh7 {[%clk 01:26:02]}
{[%emt 00:00:58]} 12. Ndf3 {[%clk 01:23:31]} {[%emt 00:01:11]} f6 {[%clk
01:15:16]} {[%emt 00:11:15]} 13. Nxd7 {[%clk 01:19:30]} {[%emt 00:04:32]} Nxd7
{[%clk 01:15:37]} {[%emt 00:00:07]} 14. h4 {[%clk 01:13:32]} {[%emt 00:06:29]}
e5 {[%clk 01:14:04]} {[%emt 00:02:03]} 15. f5 {[%clk 01:13:28]} {[%emt
00:00:34]} d4 {[%clk 00:59:52]} {[%emt 00:14:42]} 16. e4 {[%clk 01:11:08]}
{[%emt 00:02:50]} b5 {[%clk 01:00:13]} {[%emt 00:00:08]} 17. Bc1 {[%clk
01:02:10]} {[%emt 00:09:28]} c4 {[%clk 00:46:32]} {[%emt 00:14:11]} 18. dxc4
{[%clk 00:55:49]} {[%emt 00:06:52]} Nc5 {[%clk 00:42:49]} {[%emt 00:04:12]} 19.
Bd3 {[%clk 00:53:49]} {[%emt 00:02:31]} a6 {[%clk 00:43:14]} {[%emt 00:00:05]}
20. Qe2 {[%emt 00:01:31]} Qb7 {[%clk 00:37:51]} {[%emt 00:05:52]} 21. Re1
{[%clk 00:47:22]} {[%emt 00:05:57]} Rab8 {[%clk 00:37:11]} {[%emt 00:01:08]} 22.
Bd2 {[%clk 00:38:51]} {[%emt 00:09:04]} Kh8 {[%clk 00:33:09]} {[%emt 00:04:31]}
23. Rab1 {[%clk 00:34:06]} {[%emt 00:05:15]} Bg8 {[%clk 00:30:59]} {[%emt
00:02:40]} 24. cxb5 {[%clk 00:31:06]} {[%emt 00:03:30]} axb5 {[%clk 00:29:47]}
{[%emt 00:01:42]} 25. g5 {[%clk 00:31:23]} {[%emt 00:00:13]} g6 {[%clk
00:12:07]} {[%emt 00:18:10]} 26. fxg6 {[%clk 00:30:38]} {[%emt 00:01:15]} Qg7
{[%clk 00:12:32]} {[%emt 00:00:05]} 27. gxh6 {[%clk 00:29:39]} {[%emt
00:01:29]} Qxg6+ {[%clk 00:12:57]} {[%emt 00:00:05]} 28. Qg2 {[%clk 00:28:59]}
{[%emt 00:01:09]} Qxg2+ {[%clk 00:13:04]} {[%emt 00:00:24]} 29. Kxg2 {[%clk
00:29:23]} {[%emt 00:00:07]} f5 {[%clk 00:11:39]} {[%emt 00:01:55]} 30. Ng5
{[%clk 00:26:00]} {[%emt 00:03:52]} fxe4 {[%clk 00:11:38]} {[%emt 00:00:31]} 31.
Bxe4 {[%clk 00:24:57]} {[%emt 00:01:33]} Nxe4 {[%clk 00:11:37]} {[%emt
00:00:31]} 32. Nxe4 {[%clk 00:25:25]} {[%emt 00:00:01]} Bd5 {[%clk 00:11:50]}
{[%emt 00:00:18]} 33. Kg1 {[%clk 00:24:12]} {[%emt 00:01:43]} Be7 {[%clk
00:08:23]} {[%emt 00:03:57]} 34. Ng5 {[%clk 00:19:33]} {[%emt 00:05:09]} e4
{[%clk 00:05:24]} {[%emt 00:03:29]} 35. c4 {[%clk 00:17:20]} {[%emt 00:02:43]}
Bc6 {[%clk 00:02:23]} {[%emt 00:03:30]} 36. Rf1 {[%clk 00:11:54]} {[%emt
00:05:57]} e3 {[%clk 00:02:29]} {[%emt 00:00:25]} 37. Ba5 {[%clk 00:11:28]}
{[%emt 00:00:56]} Rbc8 {[%clk 00:01:20]} {[%emt 00:01:39]} 38. Rbd1 {[%clk
00:11:03]} {[%emt 00:00:54]} e2 {[%clk 00:01:11]} {[%emt 00:00:39]} 39. Rxf8+
{[%clk 00:11:30]} {[%emt 00:00:03]} Rxf8 {[%clk 00:01:30]} {[%emt 00:00:10]} 40.
Re1 {[%clk 00:11:58]} {[%emt 00:00:03]} Bc5 {[%clk 00:00:38]} {[%emt 00:01:22]}
41. Rxe2 {[%clk 00:11:52]} {[%emt 00:00:36]} d3+ {[%clk 00:00:38]} {[%emt
00:00:30]} 42. Kh2 {[%clk 00:12:20]} {[%emt 00:00:02]} 1/2-1/2

[Event "NJSK 2023 Jeugd B"]
[Site "Almelo, Netherlands"]
[Date "2023.05.01"]
[Round "2.8"]
[White "Van Hesselingen, Guido"]
[Black "Veraart, Jan"]
[Result "1-0"]
[TimeControl "90min/40moves + 30min + 30sec/move"]
[WhiteElo "1924"]
[BlackElo "1560"]

1. e4 {[%clk 01:30:57]} {[%emt 00:00:03]} c5 {[%clk 01:30:52]} {[%emt
00:00:09]} 2. Nf3 {[%clk 01:31:14]} {[%emt 00:00:13]} d6 {[%clk 01:31:18]}
{[%emt 00:00:04]} 3. c3 {[%clk 01:31:39]} {[%emt 00:00:04]} Nf6 {[%clk
01:31:44]} {[%emt 00:00:04]} 4. Bc4 {[%clk 01:32:04]} {[%emt 00:00:06]} e6
{[%clk 01:32:08]} {[%emt 00:00:06]} 5. Qe2 {[%clk 01:32:15]} {[%emt 00:00:18]}
Nc6 {[%clk 01:31:20]} {[%emt 00:01:19]} 6. d4 {[%clk 01:29:44]} {[%emt
00:03:00]} cxd4 {[%clk 01:28:49]} {[%emt 00:03:02]} 7. cxd4 {[%clk 01:29:57]}
{[%emt 00:00:16]} Be7 {[%clk 01:24:08]} {[%emt 00:05:11]} 8. e5 {[%clk
01:22:52]} {[%emt 00:07:35]} dxe5 {[%clk 01:09:51]} {[%emt 00:14:47]} 9. dxe5
{[%clk 01:22:37]} {[%emt 00:00:46]} Nd7 {[%clk 01:10:07]} {[%emt 00:00:14]} 10.
Nc3 {[%clk 01:17:53]} {[%emt 00:05:13]} a6 {[%clk 01:09:41]} {[%emt 00:00:57]}
11. O-O {[%clk 01:14:35]} {[%emt 00:03:47]} Qc7 {[%clk 01:04:13]} {[%emt
00:05:58]} 12. Bf4 {[%clk 01:10:15]} {[%emt 00:04:50]} b5 {[%clk 00:52:18]}
{[%emt 00:12:25]} 13. Bd3 {[%clk 01:05:42]} {[%emt 00:05:04]} Bb7 {[%clk
00:51:27]} {[%emt 00:01:21]} 14. Rac1 {[%clk 01:03:52]} {[%emt 00:02:19]} g5
{[%clk 00:35:28]} {[%emt 00:16:29]} 15. Bg3 {[%clk 00:43:50]} {[%emt 00:20:32]}
h5 {[%clk 00:26:30]} {[%emt 00:09:29]} 16. Nd5 {[%clk 00:39:07]} {[%emt
00:05:13]} Qd8 {[%clk 00:21:21]} {[%emt 00:05:39]} 17. Nxe7 {[%clk 00:37:07]}
{[%emt 00:02:30]} Qxe7 {[%clk 00:21:36]} {[%emt 00:00:11]} 18. h4 {[%clk
00:34:27]} {[%emt 00:03:13]} g4 {[%clk 00:20:39]} {[%emt 00:01:27]} 19. Ng5
{[%clk 00:31:22]} {[%emt 00:03:34]} Nb4 {[%clk 00:19:29]} {[%emt 00:01:41]} 20.
Rc7 {[%clk 00:23:15]} {[%emt 00:08:37]} Bd5 {[%clk 00:19:21]} {[%emt 00:00:37]}
21. Be4 {[%clk 00:21:52]} {[%emt 00:01:54]} Bc4 {[%clk 00:18:29]} {[%emt
00:01:22]} 22. Rxc4 {[%clk 00:21:22]} {[%emt 00:01:00]} bxc4 {[%clk 00:18:42]}
{[%emt 00:00:17]} 23. Bxa8 {[%clk 00:21:46]} {[%emt 00:00:06]} Nd3 {[%clk
00:18:59]} {[%emt 00:00:11]} 24. Bc6 {[%clk 00:18:40]} {[%emt 00:03:54]} 1-0

[Event "NJSK 2023 Jeugd B"]
[Site "Almelo, Netherlands"]
[Date "2023.05.02"]
[Round "3.1"]
[White "Kumar, Prajit Sai"]
[Black "Van Foreest, Nanne"]
[Result "1/2-1/2"]
[TimeControl "90min/40moves + 30min + 30sec/move"]
[WhiteElo "2228"]
[BlackElo "1893"]

1. d4 {[%clk 01:30:59]} d5 {[%clk 01:30:46]} {[%emt 00:00:15]} 2. Nf3 {[%clk
01:31:24]} {[%emt 00:00:04]} Nf6 {[%clk 01:30:59]} {[%emt 00:00:17]} 3. c3
{[%clk 01:31:50]} {[%emt 00:00:04]} e6 {[%clk 01:30:47]} {[%emt 00:00:42]} 4.
Bf4 {[%clk 01:32:14]} {[%emt 00:00:06]} Bd6 {[%clk 01:30:55]} {[%emt 00:00:23]}
5. e3 {[%clk 01:32:38]} {[%emt 00:00:06]} O-O {[%clk 01:30:52]} {[%emt
00:00:32]} 6. Nbd2 {[%clk 01:33:02]} {[%emt 00:00:06]} c5 {[%clk 01:30:41]}
{[%emt 00:00:42]} 7. Bd3 {[%clk 01:33:18]} {[%emt 00:00:12]} Qc7 {[%clk
01:30:27]} {[%emt 00:00:45]} 8. Ne5 {[%clk 01:33:41]} {[%emt 00:00:07]} b6
{[%clk 01:28:58]} {[%emt 00:02:00]} 9. h4 {[%clk 01:28:34]} {[%emt 00:05:36]}
Bb7 {[%clk 01:23:00]} {[%emt 00:06:29]} 10. Qf3 {[%clk 01:22:29]} {[%emt
00:06:34]} Nbd7 {[%clk 01:18:54]} {[%emt 00:04:37]} 11. Qg3 {[%clk 01:17:48]}
{[%emt 00:05:10]} Nh5 {[%clk 01:18:12]} {[%emt 00:01:12]} 12. Qg5 {[%clk
01:14:21]} {[%emt 00:03:58]} Nxf4 {[%clk 01:17:58]} {[%emt 00:00:43]} 13. exf4
{[%clk 01:14:47]} {[%emt 00:00:05]} cxd4 {[%clk 01:06:11]} {[%emt 00:12:16]} 14.
cxd4 {[%clk 01:13:37]} {[%emt 00:01:40]} f6 {[%clk 01:01:35]} {[%emt 00:05:06]}
15. Qh5 {[%clk 01:13:48]} {[%emt 00:00:19]} f5 {[%clk 01:00:39]} {[%emt
00:01:27]} 16. Nxd7 {[%clk 01:04:17]} {[%emt 00:10:01]} Qxd7 {[%clk 01:00:53]}
{[%emt 00:00:15]} 17. g3 {[%clk 01:03:38]} {[%emt 00:01:10]} Bb4 {[%clk
00:59:53]} {[%emt 00:01:30]} 18. O-O-O {[%clk 00:59:26]} {[%emt 00:04:41]}
Bxd2+ {[%clk 00:58:56]} {[%emt 00:01:28]} 19. Rxd2 {[%clk 00:59:33]} {[%emt
00:00:22]} Qa4 {[%clk 00:58:24]} {[%emt 00:01:02]} 20. Kb1 {[%clk 00:59:52]}
{[%emt 00:00:11]} Rac8 {[%clk 00:57:14]} {[%emt 00:01:41]} 21. Qe2 {[%clk
00:56:31]} {[%emt 00:03:50]} Qd7 {[%clk 00:48:16]} {[%emt 00:09:28]} 22. Re1
{[%clk 00:55:15]} {[%emt 00:01:46]} Rf6 {[%clk 00:47:36]} {[%emt 00:01:10]} 23.
Qd1 {[%clk 00:51:30]} {[%emt 00:04:15]} Bc6 {[%clk 00:41:30]} {[%emt 00:06:36]}
24. Rde2 {[%clk 00:48:21]} {[%emt 00:03:38]} Qd6 {[%clk 00:38:15]} {[%emt
00:03:46]} 25. Qb3 {[%clk 00:43:02]} {[%emt 00:05:49]} Bd7 {[%clk 00:37:25]}
{[%emt 00:01:20]} 26. Ba6 {[%clk 00:42:00]} {[%emt 00:01:33]} Rb8 {[%clk
00:36:31]} {[%emt 00:01:23]} 27. Bd3 {[%clk 00:39:01]} {[%emt 00:03:29]} Rc8
{[%clk 00:36:24]} {[%emt 00:00:37]} 28. a3 {[%clk 00:34:32]} {[%emt 00:04:58]}
Rff8 {[%clk 00:34:41]} {[%emt 00:02:14]} 29. Ba6 {[%clk 00:33:02]} {[%emt
00:02:00]} Rb8 {[%clk 00:33:57]} {[%emt 00:01:14]} 30. Bb5 {[%clk 00:32:18]}
{[%emt 00:01:15]} Bxb5 {[%clk 00:33:47]} {[%emt 00:00:40]} 31. Qxb5 {[%clk
00:32:39]} {[%emt 00:00:08]} Rfe8 {[%clk 00:33:37]} {[%emt 00:00:39]} 32. Rc2
{[%clk 00:25:37]} {[%emt 00:07:33]} Rec8 {[%clk 00:30:52]} {[%emt 00:03:16]} 33.
Rce2 {[%clk 00:24:40]} {[%emt 00:01:26]} Re8 {[%clk 00:31:16]} {[%emt
00:00:06]} 34. Qa4 {[%clk 00:21:44]} {[%emt 00:03:26]} a5 {[%clk 00:28:51]}
{[%emt 00:02:55]} 35. Rc2 {[%clk 00:20:05]} {[%emt 00:02:09]} Rec8 {[%clk
00:28:38]} {[%emt 00:00:44]} 36. Rec1 {[%clk 00:20:18]} {[%emt 00:00:16]} Rxc2
{[%clk 00:28:38]} {[%emt 00:00:31]} 37. Rxc2 {[%clk 00:20:41]} {[%emt
00:00:07]} Kf7 {[%clk 00:26:22]} {[%emt 00:02:45]} 38. Qc6 {[%clk 00:15:59]}
{[%emt 00:05:11]} Qxc6 {[%clk 00:25:35]} {[%emt 00:01:18]} 39. Rxc6 {[%clk
00:16:18]} {[%emt 00:00:11]} Rb7 {[%clk 00:24:48]} {[%emt 00:01:16]} 40. h5
{[%clk 00:09:19]} {[%emt 00:07:30]} Ke7 {[%clk 00:24:26]} {[%emt 00:00:52]} 41.
b4 {[%clk 00:06:36]} {[%emt 00:03:12]} Kd7 {[%clk 00:21:35]} {[%emt 00:03:22]}
42. b5 {[%clk 00:06:54]} {[%emt 00:00:12]} g6 {[%clk 00:21:56]} {[%emt
00:00:09]} 43. hxg6 {[%clk 00:03:50]} {[%emt 00:03:35]} hxg6 {[%clk 00:22:23]}
{[%emt 00:00:02]} 44. Kb2 {[%clk 00:03:50]} {[%emt 00:00:29]} Rb8 {[%clk
00:22:14]} {[%emt 00:00:39]} 45. f3 {[%clk 00:03:32]} {[%emt 00:00:48]} Rb7
{[%clk 00:22:33]} {[%emt 00:00:13]} 46. Kb3 {[%clk 00:01:57]} {[%emt 00:02:03]}
Rb8 {[%clk 00:22:58]} {[%emt 00:00:06]} 47. Kb2 {[%clk 00:01:05]} {[%emt
00:01:22]} Rb7 {[%clk 00:23:26]} {[%emt 00:00:02]} 48. Kc2 {[%clk 00:27:09]}
{[%emt 00:04:26]} Rc7 {[%clk 00:53:49]} {[%emt 00:00:07]} 49. Rxc7+ {[%clk
00:27:35]} {[%emt 00:00:04]} Kxc7 {[%clk 00:54:17]} {[%emt 00:00:02]} 50. Kd3
{[%clk 00:27:55]} {[%emt 00:00:09]} Kd7 {[%clk 00:54:35]} {[%emt 00:00:13]} 51.
Ke2 {[%clk 00:28:21]} {[%emt 00:00:04]} Ke7 {[%clk 00:54:55]} {[%emt 00:00:10]}
52. Kf2 {[%clk 00:28:19]} {[%emt 00:00:32]} Kf6 {[%clk 00:51:22]} {[%emt
00:04:03]} 53. Kg2 {[%clk 00:23:32]} {[%emt 00:05:17]} g5 {[%clk 00:50:45]}
{[%emt 00:01:07]} 54. fxg5+ {[%clk 00:23:56]} {[%emt 00:00:06]} Kxg5 {[%clk
00:51:10]} {[%emt 00:00:05]} 55. Kh3 {[%clk 00:21:24]} {[%emt 00:03:02]} f4
{[%clk 00:39:13]} {[%emt 00:12:27]} 56. g4 {[%clk 00:21:33]} {[%emt 00:00:21]}
Kg6 {[%clk 00:38:47]} {[%emt 00:00:57]} 57. Kg2 {[%clk 00:19:31]} {[%emt
00:02:31]} Kg5 {[%clk 00:39:10]} {[%emt 00:00:07]} 58. a4 {[%clk 00:18:15]}
{[%emt 00:01:46]} Kh6 {[%clk 00:39:34]} {[%emt 00:00:06]} 59. Kh2 {[%clk
00:18:24]} {[%emt 00:00:20]} Kg5 {[%clk 00:39:56]} {[%emt 00:00:09]} 60. Kh3
{[%clk 00:18:49]} {[%emt 00:00:05]} Kg6 {[%clk 00:40:23]} {[%emt 00:00:03]} 61.
Kg2 {[%clk 00:18:43]} {[%emt 00:00:36]} 1/2-1/2

[Event "NJSK 2023 Jeugd B"]
[Site "Almelo, Netherlands"]
[Date "2023.05.02"]
[Round "3.2"]
[White "Niemeijer, Leon"]
[Black "Van Arendonk, Polle"]
[Result "0-1"]
[TimeControl "90min/40moves + 30min + 30sec/move"]
[WhiteElo "1903"]
[BlackElo "1772"]

1. d4 {[%clk 01:30:57]} {[%emt 00:00:03]} Nf6 {[%clk 01:30:57]} {[%emt
00:00:04]} 2. c4 {[%clk 01:31:21]} {[%emt 00:00:05]} g6 {[%clk 01:31:24]}
{[%emt 00:00:04]} 3. Nc3 {[%clk 01:30:50]} {[%emt 00:01:00]} d5 {[%clk
01:31:49]} {[%emt 00:00:05]} 4. cxd5 {[%clk 01:31:15]} {[%emt 00:00:06]} Nxd5
{[%clk 01:32:17]} {[%emt 00:00:02]} 5. e4 {[%clk 01:31:37]} {[%emt 00:00:07]}
Nxc3 {[%clk 01:32:43]} {[%emt 00:00:04]} 6. bxc3 {[%clk 01:32:04]} {[%emt
00:00:03]} Bg7 {[%clk 01:33:00]} {[%emt 00:00:14]} 7. Nf3 {[%clk 01:32:26]}
{[%emt 00:00:08]} c5 {[%clk 01:33:24]} {[%emt 00:00:05]} 8. Be3 {[%clk
01:32:41]} {[%emt 00:00:15]} Nc6 {[%clk 01:33:33]} {[%emt 00:00:22]} 9. Bb5
{[%clk 01:31:44]} {[%emt 00:01:27]} O-O {[%clk 01:30:39]} {[%emt 00:03:23]} 10.
Bxc6 {[%clk 01:25:15]} {[%emt 00:06:59]} bxc6 {[%clk 01:31:08]} {[%emt
00:00:02]} 11. O-O {[%clk 01:25:36]} {[%emt 00:00:08]} Bg4 {[%clk 01:26:23]}
{[%emt 00:05:15]} 12. Rc1 {[%clk 01:22:07]} {[%emt 00:03:59]} Qa5 {[%clk
01:24:18]} {[%emt 00:02:36]} 13. Qc2 {[%clk 01:06:49]} {[%emt 00:15:48]} Bxf3
{[%clk 01:20:58]} {[%emt 00:03:50]} 14. gxf3 {[%clk 01:07:16]} {[%emt
00:00:02]} Rfd8 {[%clk 01:16:01]} {[%emt 00:05:27]} 15. e5 {[%clk 00:59:35]}
{[%emt 00:08:11]} c4 {[%clk 01:11:46]} {[%emt 00:04:45]} 16. Qe2 {[%clk
00:36:13]} {[%emt 00:23:51]} Qa4 {[%clk 01:07:05]} {[%emt 00:05:12]} 17. f4
{[%clk 00:31:12]} {[%emt 00:05:32]} e6 {[%clk 01:07:09]} {[%emt 00:00:25]} 18.
Rc2 {[%clk 00:21:37]} {[%emt 00:10:05]} Rdb8 {[%clk 01:05:05]} {[%emt
00:02:34]} 19. Rb2 {[%clk 00:21:41]} {[%emt 00:00:26]} Rb5 {[%clk 00:55:55]}
{[%emt 00:09:40]} 20. Qc2 {[%clk 00:10:09]} {[%emt 00:12:02]} Qxc2 {[%clk
00:55:18]} {[%emt 00:01:07]} 21. Rxc2 {[%clk 00:10:38]} {[%emt 00:00:01]} a5
{[%clk 00:54:25]} {[%emt 00:01:23]} 22. a4 {[%clk 00:09:09]} {[%emt 00:01:59]}
Rb3 {[%clk 00:54:17]} {[%emt 00:00:38]} 23. Ra1 {[%clk 00:09:33]} {[%emt
00:00:06]} Rab8 {[%clk 00:54:19]} {[%emt 00:00:29]} 24. Bc1 {[%clk 00:09:45]}
{[%emt 00:00:18]} Bf8 {[%clk 00:54:10]} {[%emt 00:00:39]} 25. Kg2 {[%clk
00:09:40]} {[%emt 00:00:34]} h5 {[%clk 00:50:53]} {[%emt 00:03:47]} 26. Raa2
{[%clk 00:07:09]} {[%emt 00:03:01]} Be7 {[%clk 00:44:11]} {[%emt 00:07:12]} 27.
f3 {[%clk 00:02:20]} {[%emt 00:05:19]} Rd8 {[%clk 00:39:25]} {[%emt 00:05:16]}
28. Be3 {[%clk 00:01:17]} {[%emt 00:01:33]} Bh4 {[%clk 00:37:31]} {[%emt
00:02:24]} 29. Bf2 {[%clk 00:00:32]} {[%emt 00:01:15]} Be7 {[%clk 00:37:18]}
{[%emt 00:00:43]} 30. Be3 {[%clk 00:00:38]} {[%emt 00:00:25]} Ba3 {[%clk
00:37:01]} {[%emt 00:00:46]} 31. Kf2 {[%clk 00:00:58]} {[%emt 00:00:10]} Rdb8
{[%clk 00:37:06]} {[%emt 00:00:25]} 32. Ke2 {[%clk 00:01:09]} {[%emt 00:00:19]}
Be7 {[%clk 00:31:36]} {[%emt 00:06:00]} 33. Bc1 {[%clk 00:01:05]} {[%emt
00:00:34]} Kg7 {[%clk 00:31:08]} {[%emt 00:00:59]} 34. h3 {[%clk 00:00:46]}
{[%emt 00:00:49]} Rb1 {[%clk 00:30:03]} {[%emt 00:01:35]} 35. Kd2 {[%clk
00:00:35]} {[%emt 00:00:41]} g5 {[%clk 00:27:28]} {[%emt 00:03:04]} 36. Ke3
{[%clk 00:01:00]} {[%emt 00:00:05]} R8b3 {[%clk 00:18:19]} {[%emt 00:09:38]} 37.
Ke4 {[%clk 00:00:52]} {[%emt 00:00:39]} gxf4 {[%clk 00:17:01]} {[%emt
00:01:47]} 38. Kxf4 {[%clk 00:00:58]} {[%emt 00:00:25]} Kf8 {[%clk 00:17:00]}
{[%emt 00:00:31]} 39. Kg3 {[%clk 00:00:49]} {[%emt 00:00:39]} Kg7 {[%clk
00:14:11]} {[%emt 00:03:20]} 40. Kf4 {[%clk 00:00:43]} {[%emt 00:00:36]} Kh7
{[%clk 00:12:34]} {[%emt 00:02:06]} 41. Kg3 {[%clk 00:00:33]} {[%emt 00:00:40]}
Kg6 {[%clk 00:12:42]} {[%emt 00:00:23]} 42. h4 {[%clk 00:19:00]} {[%emt
00:12:02]} Kf5 {[%clk 00:39:59]} {[%emt 00:03:13]} 43. Kh3 {[%clk 00:10:05]}
{[%emt 00:09:25]} c5 {[%clk 00:34:36]} {[%emt 00:05:54]} 44. Kg3 {[%clk
00:08:14]} {[%emt 00:02:20]} cxd4 {[%clk 00:33:45]} {[%emt 00:01:21]} 45. cxd4
{[%clk 00:08:43]} c3 {[%clk 00:33:50]} {[%emt 00:00:25]} 46. Kh3 {[%clk
00:08:03]} {[%emt 00:01:10]} Bb4 {[%clk 00:28:54]} {[%emt 00:05:26]} 47. Kg3
{[%clk 00:05:53]} {[%emt 00:02:40]} Rxc1 {[%clk 00:24:13]} {[%emt 00:05:10]} 48.
Rxc1 {[%clk 00:05:01]} {[%emt 00:01:22]} Rb2 {[%clk 00:24:36]} {[%emt
00:00:08]} 49. Rxb2 {[%clk 00:00:40]} {[%emt 00:04:52]} cxb2 {[%clk 00:24:56]}
{[%emt 00:00:09]} 50. Rh1 {[%clk 00:00:35]} {[%emt 00:00:35]} Bd2 {[%clk
00:24:39]} {[%emt 00:00:47]} 51. Rb1 {[%clk 00:00:48]} {[%emt 00:00:16]} Bc3
{[%clk 00:25:05]} {[%emt 00:00:04]} 52. Kf2 {[%emt 00:00:48]} Bxd4+ {[%clk
00:25:17]} {[%emt 00:00:16]} 53. Ke2 {[%clk 00:01:00]} {[%emt 00:00:03]} Bxe5
{[%clk 00:25:15]} {[%emt 00:00:33]} 54. Kd3 {[%clk 00:00:34]} {[%emt 00:00:55]}
Kf4 {[%emt 00:02:26]} 55. Rf1 {[%clk 00:00:32]} f6 {[%clk 00:23:24]} {[%emt
00:00:58]} 0-1

[Event "NJSK 2023 Jeugd B"]
[Site "Almelo, Netherlands"]
[Date "2023.05.02"]
[Round "3.3"]
[White "Smeets, Kobe"]
[Black "Labruyere, Roger"]
[Result "0-1"]
[TimeControl "90min/40moves + 30min + 30sec/move"]
[WhiteElo "2094"]
[BlackElo "2160"]

1. e4 {[%emt 00:03:24]} c5 {[%clk 01:27:22]} {[%emt 00:00:20]} 2. Nf3 {[%clk
01:31:17]} {[%emt 00:00:06]} Nc6 {[%clk 01:27:45]} {[%emt 00:00:07]} 3. Bb5
{[%clk 01:31:42]} {[%emt 00:00:06]} g6 {[%clk 01:28:05]} {[%emt 00:00:09]} 4.
Bxc6 {[%clk 01:32:06]} {[%emt 00:00:07]} bxc6 {[%clk 01:27:12]} {[%emt
00:01:23]} 5. O-O {[%clk 01:30:39]} {[%emt 00:01:56]} Bg7 {[%clk 01:27:37]}
{[%emt 00:00:05]} 6. d3 {[%clk 01:28:25]} {[%emt 00:02:44]} d6 {[%clk
01:26:50]} {[%emt 00:01:17]} 7. h3 {[%clk 01:27:17]} {[%emt 00:01:39]} Nf6
{[%clk 01:23:15]} {[%emt 00:04:05]} 8. a4 {[%clk 01:27:28]} {[%emt 00:00:19]}
O-O {[%clk 01:21:48]} {[%emt 00:01:56]} 9. Na3 {[%clk 01:13:33]} {[%emt
00:14:26]} e5 {[%clk 01:19:58]} {[%emt 00:02:19]} 10. Be3 {[%clk 01:00:38]}
{[%emt 00:13:26]} Nh5 {[%clk 01:17:59]} {[%emt 00:02:27]} 11. Nc4 {[%clk
00:47:26]} {[%emt 00:13:43]} Qc7 {[%clk 01:11:29]} {[%emt 00:06:59]} 12. Qd2
{[%clk 00:38:45]} {[%emt 00:09:12]} f5 {[%clk 01:02:17]} {[%emt 00:09:42]} 13.
Qa5 {[%clk 00:36:15]} {[%emt 00:03:00]} Qd7 {[%clk 00:53:21]} {[%emt 00:09:26]}
14. Nb6 {[%clk 00:17:46]} {[%emt 00:19:00]} Qd8 {[%clk 00:51:04]} {[%emt
00:02:46]} 15. Nc4 {[%clk 00:18:10]} {[%emt 00:00:06]} fxe4 {[%clk 00:49:51]}
{[%emt 00:01:43]} 16. Qxd8 {[%clk 00:18:06]} {[%emt 00:00:34]} Rxd8 {[%clk
00:50:17]} {[%emt 00:00:04]} 17. dxe4 {[%clk 00:18:06]} {[%emt 00:00:30]} Ba6
{[%clk 00:50:38]} {[%emt 00:00:09]} 18. b3 {[%clk 00:09:58]} {[%emt 00:08:38]}
d5 {[%clk 00:50:47]} {[%emt 00:00:21]} 19. exd5 {[%clk 00:10:03]} {[%emt
00:00:25]} e4 {[%clk 00:48:48]} {[%emt 00:02:30]} 20. Ng5 {[%clk 00:04:56]}
{[%emt 00:05:36]} cxd5 {[%clk 00:48:06]} {[%emt 00:01:12]} 21. Na5 {[%clk
00:04:18]} {[%emt 00:01:08]} Bxf1 {[%clk 00:48:12]} {[%emt 00:00:24]} 22. Rxf1
{[%clk 00:04:41]} {[%emt 00:00:07]} d4 {[%clk 00:48:15]} {[%emt 00:00:27]} 23.
Bc1 {[%clk 00:04:05]} {[%emt 00:01:07]} Re8 {[%clk 00:48:15]} {[%emt 00:00:29]}
24. Re1 {[%clk 00:02:15]} {[%emt 00:02:20]} Bh6 {[%clk 00:44:01]} {[%emt
00:04:43]} 25. Nb7 {[%clk 00:02:14]} {[%emt 00:00:31]} e3 {[%clk 00:41:01]}
{[%emt 00:03:31]} 26. h4 {[%clk 00:02:37]} {[%emt 00:00:07]} Bxg5 {[%clk
00:41:13]} {[%emt 00:00:17]} 27. hxg5 {[%clk 00:03:05]} {[%emt 00:00:03]} Re7
{[%clk 00:41:26]} {[%emt 00:00:18]} 28. Nxc5 {[%clk 00:03:09]} {[%emt
00:00:25]} exf2+ {[%clk 00:41:48]} {[%emt 00:00:08]} 0-1